{"text_format":"1","workbook":"xlsx","n_sheets":4,"sheets":["A-Instructions","B-Annexe équipe","C-Budget","DataValidation"],"not_rendered":{"charts":0,"images":4,"macros":1,"external_links":0,"defined_names":3,"comments":0,"pivot_tables":0},"unopened":[],"bounds":{"document_bytes":16777216,"sheet_cells":100000,"rows_first":2000,"rows_last":500,"rows_between":2000,"halvings":0,"cell_chars":16384,"cell_head_chars":4096},"cells_cut":0,"cells_raw":0,"read":"whole","date_system":"1900"}

{"sheet":"A-Instructions","index":0,"n_rows":62,"n_cols":3,"rows_kept":62,"cut":false,"hidden":false,"merged":[[61,2,61,15],[46,1,47,15],[1,1,1,15],[2,1,2,15],[3,1,5,15],[58,1,58,15],[19,2,19,15],[11,1,12,15],[32,2,33,15],[49,1,50,15],[59,2,60,15]]}
[null,"v202110"]
[null,"Pulsion numérique"]
[null,"Instructions pour remplir les onglets de l'Annexe équipe et du Budget"]
[null,"Le formulaire de budget est conçu pour un large éventail d'activités. Le formulaire contient un certain nombre de lignes vides que vous pouvez utiliser pour préciser les dépenses qui s'appliquent à votre initiative. Veuillez inscrire le montant de la dépense et ajouter une note au budget explicant ce montant."]
[]
[]
[]
[null,"Veuillez noter qu'au bas de la page se trouvent deux onglets :  Annexe équipe et Budget"]
[]
[]
[]
[null,"Vous devez remplir ces deux onglets. Veuillez commencer par l'onglet Annexe équipe. Les informations que vous fournissez dans cet onglet seront utilisées dans l'onglet Budget."]
[]
[null,"Lorsque vous cliquez sur « enregistrer », tous les onglets sont sauvegardés en même temps."]
[null,"Lorsque vous téléversez le document pour le joindre à votre formulaire de demande, tous les onglets sont transférés ensemble."]
[]
[null,"1. Enregistrez le formulaire sur votre ordinateur. Vous pouvez l'enregistrer sous un nom différent."]
[]
[null,"2. Remplissez d'abord l'onglet « Annexe équipe ». (le « Titre du poste » fourni dans cet onglet remplira automatiquement le formulaire de budget)"]
[null,null," - Énumérez le nom de chaque personne travaillant à votre initiative en indiquant son titre de poste et ce qu'elle contribuera à l’initiative."]
[null,null," - Remplissez toutes les colonnes du formulaire, en fournissant des informations supplémentaires si nécessaire."]
[null,null," - Insérer des lignes si nécessaire au-dessus de la ligne indiquée :"]
[]
[]
[]
[]
[]
[]
[]
[]
[]
[null,"3. Remplissez l’onglet intitulé « Budget »."]
[null,null," - Remplissez chaque section relative à votre projet avec les coûts admissibles seulement et fournissez une justification dans la section \n   « Notes au budget »."]
[]
[null,null," - Si vous incluez des revenus en nature, indiquez dans les notes budgétaires à quelle dépense d'initiative ils correspondent."]
[null,null," - Cliquez sur les cellules de sélection à choisir dans les menus déroulants à l’aide des flèches à droite."]
[null,null," - Insérer des lignes si nécessaire au-dessus des lignes indiquées."]
[null,null," - Formatez les lignes insérées en glissant le symbole + de la ligne précédente une ligne vers le bas, afin de copier le formatage de la ligne précédente :"]
[]
[]
[]
[]
[null,"4. N'oubliez pas d'enregistrer à nouveau le document sur votre ordinateur."]
[]
[null,"5. Retournez au portail du Conseil et téléversez le document pour le joindre à votre demande."]
[]
[null,"Si votre demande est retenue, vous pourrez utiliser la colonne « 1ère  mise à jour » pour fournir vos budgets révisés si vous soumettiez des mises à jour de projet et mettre à jour les notes budgétaires au besoin."]
[]
[]
[null,"Lorsque votre initiative sera complétée, vous utiliserez la colonne « Montant réel » lorsque vous soumettre un Rapport final et mettrez à jour les notes budgétaires au besoin."]
[]
[]
[null,"Soutien à l'accès aux services"]
[]
[null,"Si votre Profil de candidat validé dans le portail vous identifie comme :"]
[null,null,"- Personne sourde, handicapée ou vivant avec une maladie mentale, ou groupe ou organisme axé sur la pratique des artistes handicapés et sourds."]
[null,"Vous verrez que cette composante est énumérée dans la section Fonds stratégiques de vos programmes disponibles."]
[]
[null,"Si vous recevez un appui du Soutien à l'accès aux services pour ce projet, vous devez inscrire le montant qui vous a été accordé et les coûts couverts :"]
[null,null," - Veuillez inscrire à la ligne 45 du budget, les coûts des services et mesures de soutien aux personnes sourdes, ou vivant avec un handicap ou\n   une maladie mentale requis pour appuyer les artistes et les professionnels des arts participant au projet."]
[]
[null,null," - Veuillez inscrire, à la ligne 84, le montant accordé par le Soutien à l'accès aux services."]

{"sheet":"B-Annexe équipe","index":1,"n_rows":19,"n_cols":6,"rows_kept":19,"cut":false,"hidden":false,"merged":[[1,2,1,5],[3,2,3,5],[5,1,6,1]]}
[null,null,{"$f":"'A-Instructions'!B1","v":"v202110"}]
[null,null,"Pulsion numérique – Annexe équipe de projet"]
[]
[null,null,"Veuillez remplir le tableau ci-dessous pour énumérer tous les membres de l’équipe de projet et leur contribution principale."]
[]
[null,null,"Nom du membre de l’équipe","Titre du poste","Organisme","Principales contributions au projet"]
[null,null,"(si disponible)","(à utiliser dans le formulaire de budget)","(le cas échéant)"]
[null,null,null,"Cliquez ici pour sélectionner"]
[null,1]
[null,2]
[null,3]
[null,4]
[null,5]
[null,6]
[null,7]
[null,8]
[null,9]
[null,10]
[null,"Insérez des lignes si nécessaires au-dessus de cette ligne"]

{"sheet":"C-Budget","index":2,"n_rows":125,"n_cols":8,"rows_kept":125,"cut":false,"hidden":false,"merged":[[73,1,73,3],[63,1,63,3],[61,1,61,3],[68,1,68,3],[70,1,70,7],[66,1,66,3],[67,1,67,3],[71,1,71,3],[1,1,1,7],[15,1,15,7],[5,1,5,3],[5,4,5,7],[7,1,7,3],[8,1,11,3],[13,2,13,4],[13,5,13,7],[3,1,3,7],[16,1,16,7],[17,1,17,3],[36,1,36,3],[37,1,37,3],[29,1,29,3],[31,1,31,7],[18,1,18,3],[19,1,19,3],[20,1,20,3],[21,1,21,3],[22,1,22,3],[23,1,23,3],[24,1,24,3],[25,1,25,3],[26,1,26,3],[32,1,32,7],[112,1,112,7],[77,1,78,1],[77,2,77,4],[102,1,102,7],[77,7,78,7],[96,1,96,7],[103,1,103,6],[81,1,81,7],[27,1,27,3],[40,1,40,3],[41,1,41,3],[72,1,72,3],[59,1,59,7],[65,1,65,3],[45,1,45,3],[62,1,62,3],[50,1,50,3],[51,1,51,3],[52,1,52,3],[54,1,54,3],[49,1,49,3],[53,1,53,3],[48,1,48,7],[44,1,44,3],[28,1,28,3],[55,1,55,3],[84,1,84,7],[88,1,88,7],[92,1,92,7],[57,1,57,3],[75,1,75,3],[47,1,47,7],[33,1,33,3],[34,1,34,3],[35,1,35,3],[42,1,42,3],[38,1,38,3],[39,1,39,3],[43,1,43,3],[60,1,60,7]]}
[null,{"$f":"'A-Instructions'!B1","v":"v202110"}]
[null,"IMPORTANT : Lisez les instructions et remplissez d'abord l'onglet Annexe équipe"]
[]
[null,"Pulsion numérique – Budget "]
[]
[null,"Sélectionner le volet :",null,null,"Cliquez sur la flèche à droite pour sélectionner le volet"]
[]
[null,"Remplissez les lignes ci-dessous qui se rapportent à votre projet\n(ne pas inclure les taxes de vente)",null,null,"Budget","1ère mise à jour\n(le cas échéant)","Montant réel","Notes au budget\n(requis)"]
[null,"Dates du projet\n(doit être cohérent avec le plan de travail)",null,null,"Date début ","Date début ","Date début "]
[null,null,null,null,"aaaa-mm-jj","aaaa-mm-jj","aaaa-mm-jj"]
[null,null,null,null,"Date de fin ","Date de fin ","Date de fin "]
[null,null,null,null,"aaaa-mm-jj","aaaa-mm-jj","aaaa-mm-jj"]
[]
[null,"Dépenses de l'initiative"]
[]
[null,"Honoraires professionnels (précisez dans les notes notes au budget)"]
[null,"Honoraires versés aux professionnels et aux fournisseurs de services : p. ex., gestionnaires de projet, experts, formateurs, facilitateurs et consultants directement impliqués dans la réalisation de votre projet"]
[null,"Titre du poste (sélectionner dans la liste déroulante remplie par l'Annexe équipe)",null,null,"Frais (sans taxes)","Frais (sans taxes)","Frais (sans taxes)","Tarifs, heures, période de temps"]
[null,"Cliquez ici pour sélectionner"]
[null,"Cliquez ici pour sélectionner"]
[null,"Cliquez ici pour sélectionner"]
[null,"Cliquez ici pour sélectionner"]
[null,"Cliquez ici pour sélectionner"]
[null,"Cliquez ici pour sélectionner"]
[null,"Cliquez ici pour sélectionner"]
[null,"Cliquez ici pour sélectionner"]
[null,"Cliquez ici pour sélectionner"]
[null,"Cliquez ici pour sélectionner"]
[null,"Insérez des lignes si nécessaires au-dessus de cette ligne"]
[null,"Sous-total – Honoraires professionnels",null,null,{"$f":"SUM(E18:E29)","v":0},{"$f":"SUM(F18:F29)","v":0},{"$f":"SUM(G18:G29)","v":0}]
[]
[null,"Coûts généraux de l’initiative (préciser dans les notes au budget)"]
[null,"Toutes les dépenses liées à l'initiative qui ne sont pas énumérées dans les autres sections de ce budget :\np. ex., achat d’ensembles de données, coûts d’accessibilité, location d’équipement, frais de licence de logiciel, technologie non capitalisée, partage des résultats, formation des employés, etc."]
[null,"Article ",null,null,"Coûts (sans taxes)","Coûts (sans taxes)","Coûts (sans taxes)","Détails"]
[]
[]
[]
[]
[]
[]
[]
[]
[]
[]
[null,"Coûts d'accès : les soutiens et services liés au handicap dont le candidat principal a besoin pour réaliser l'initiative. N'incluez aucun montant dans la colonne Budget. Vous pouvez plutôt demander Soutien à l’accès aux services en utilisant une demande séparée.\nIndiquez tout montant reçu dans les colonnes 1ère mise à jour et Montant réel."]
[null,"Sous-total – Coûts généraux de l'initiative",null,null,{"$f":"SUM(E35:E45)","v":0},{"$f":"SUM(F35:F45)","v":0},{"$f":"SUM(G35:G45)","v":0}]
[]
[null,"Frais de déplacement"]
[null,"Préciser dans les notes au budget : p. ex., durée, origine et destination, etc. "]
[null,"Titre du poste (sélectionner dans la liste déroulante remplie par l'Annexe équipe)",null,null,"Coûts (sans taxes)","Coûts (sans taxes)","Coûts (sans taxes)","Nombre de jours / Origine et destination"]
[null,"Cliquez ici pour sélectionner"]
[null,"Cliquez ici pour sélectionner"]
[null,"Cliquez ici pour sélectionner"]
[null,"Cliquez ici pour sélectionner"]
[null,"Cliquez ici pour sélectionner"]
[null,"Insérez des lignes si nécessaires au-dessus de cette ligne"]
[null,"Indemnité journalière et hébergement (maximum de 150 $/jour/personne)"]
[null,"Sous-total – Frais de déplacement",null,null,{"$f":"SUM(E50:E57)","v":0},{"$f":"SUM(F50:F57)","v":0},{"$f":"SUM(G50:G57)","v":0}]
[]
[null,"Dépenses en immobilisations : S'applique au Volet 2 uniquement - Peut représenter jusqu'à 20 % de la subvention totale"]
[null,"Les coûts doivent être justifiés dans le formulaire de demande et les notes au budget : p. ex., coûts d’achat d’équipement et de logiciels capitalisés"]
[null,"Article ",null,null,"Coûts (sans taxes)","Coûts (sans taxes)","Coûts (sans taxes)","Description / Justification"]
[]
[]
[]
[]
[]
[null,"Sous-total – Coûts des dépenses en immobilisations",null,null,{"$f":"SUM(E63:E67)","v":0},{"$f":"SUM(F63:F67)","v":0},{"$f":"SUM(G63:G67)","v":0}]
[null,"% du montant de la subvention demandée",null,null,{"$f":"IFERROR((E68/E83),\"\")","v":""},{"$f":"IFERROR((F68/F83),\"\")","v":""},""]
[]
[null,"Indemnité d’administration (peut représenter jusqu’à 5 % du total des coûts admissibles)"]
[null,"Indemnité d’administration"]
[null,"Sous-total – Administration",null,null,{"$f":"SUM(E72:E72)","v":0},{"$f":"SUM(F72:F72)","v":0},{"$f":"SUM(G72:G72)","v":0}]
[null,"% du total des coûts admissibles",null,null,{"$f":"IFERROR((E73/E76),\"\")","v":""},{"$f":"IFERROR((F73/F76),\"\")","v":""},""]
[]
[null,"Total des coûts admissibles",null,null,{"$f":"SUM(E30,E46,E58,E68,E73)","v":0},{"$f":"SUM(F30,F46,F58,F68,F73)","v":0},{"$f":"SUM(G30,G46,G58,G68,G73)","v":0}]
[]
[null,"Revenus de l'initiative","Budget",null,null,"1ère mise à jour\n(le cas échéant)","Montant réel","Notes au budget\n(requis)"]
[null,null,"Confirmé","En attente","Total","Total","Total"]
[]
[]
[null,"Revenus du secteur public* – Les autres subventions du Conseil, à l'exception d'une subvention de Soutien à l’accès aux services, ne peuvent être utilisées comme revenu pour cette initiative"]
[null,"Subvention pour cette demande\nJusqu'à concurrence de 100 000 $",null,null,{"$f":"SUM(C83:D83)","v":0}]
[null,"Soutien à l’accès aux services\n(soumettre une demande de Soutien à l’accès aux services)","Non requis","Non requis","Non requis"]
[null,"Autre subvention fédérale "]
[null,null,null,null,{"$f":"SUM(C86:D86)","v":0}]
[null,null,null,null,0]
[null,null,null,null,0]
[null,"Subvention provinciale ou territoriale"]
[null,null,null,null,{"$f":"SUM(C90:D90)","v":0}]
[null,null,null,null,{"$f":"SUM(C91:D91)","v":0}]
[null,null,null,null,0]
[null,"Subvention municipale ou régionale"]
[null,null,null,null,{"$f":"SUM(C94:D94)","v":0}]
[null,null,null,null,{"$f":"SUM(C95:D95)","v":0}]
[null,null,null,null,0]
[null,"Autres revenus du secteur public"]
[null,null,null,null,{"$f":"SUM(C98:D98)","v":0}]
[null,null,null,null,{"$f":"SUM(C99:D99)","v":0}]
[null,null,null,null,{"$f":"SUM(C100:D100)","v":0}]
[null,"Sous-total – Revenus du secteur public",{"$f":"SUM(C83:C100)","v":0},{"$f":"SUM(D83:D100)","v":0},{"$f":"SUM(C101:D101)","v":0},{"$f":"SUM(F83:F100)","v":0},{"$f":"SUM(G83:G100)","v":0}]
[]
[null,"Services et soutien en nature (doit correspondre aux dépenses réelles dans la section Dépenses de l'initiative, le cas échéant, le remboursement du fournisseur de services peut représenter jusqu’à 20 % des honoraires professionnels facturés)"]
[null,"Sources",null,null,null,null,null,"Indiquez quelle ligne de dépense correspond au montant du Soutien en nature"]
[null,null,null,null,{"$f":"SUM(C105:D105)","v":0}]
[null,null,null,null,0]
[null,null,null,null,0]
[null,null,null,null,0]
[null,null,null,null,0]
[null,"Sous-total – Soutien en nature",{"$f":"SUM(C103:C109)","v":0},{"$f":"SUM(D103:D109)","v":0},{"$f":"SUM(C110:D110)","v":0},{"$f":"SUM(F103:F109)","v":0},{"$f":"SUM(G103:G109)","v":0}]
[]
[]
[null,"Autres revenus"]
[null,null,null,null,{"$f":"SUM(C114:D114)","v":0}]
[null,null,null,null,0]
[null,null,null,null,{"$f":"SUM(C116:D116)","v":0}]
[null,null,null,null,0]
[null,null,null,null,0]
[null,"Sous-total – Autres revenus",{"$f":"SUM(C114:C118)","v":0},0,{"$f":"SUM(C119:D119)","v":0},0,0]
[]
[null,"Total des revenus de l'initiative\n(doit être égal au Total des coûts admissibles)",null,null,{"$f":"SUM(E101,E110,E119)","v":0},{"$f":"SUM(F101,F110,F119)","v":0},{"$f":"SUM(G101,G110,G119)","v":0}]
[]
[null,"Total des coûts admissibles\n(doit être égal au total des revenus de l’initiative)",null,null,{"$f":"E76","v":0},{"$f":"F76","v":0},{"$f":"G76","v":0}]
[]
[null,"Excédent (Déficit)\nVous devez présenter un budget équilibré",null,null,{"$f":"E121-E123","v":0},{"$f":"F121-F123","v":0},{"$f":"G121-G123","v":0}]

{"sheet":"DataValidation","index":3,"n_rows":3,"n_cols":2,"rows_kept":3,"cut":false,"hidden":true,"merged":[]}
[{"$f":"'A-Instructions'!B1","v":"v202110"},"Cliquez sur la flèche à droite pour sélectionner le volet"]
[null,"Volet 1"]
[null,"Volet 2"]